Cogmind - Beta 17.1 @@@ ROGUE MODE // 2026.09.21 @ 14:38:47 Player: Zaje Result: Destroyed by G-50 Soldier with Heavy Laser Performance ------------- Evolutions (4) 2000 Regions Visited (5) 1000 Robots Destroyed (46) 230 Value Destroyed (1598) 1598 Prototype IDs (12) 240 Alien Tech Used (0) 0 Bonus (932) 932 TOTAL SCORE: 6000 Bonus ------- Follower Combat Kills 151 Registered with UFD 300 Met Optimus in HQ 500 Friendly Fire -19 Cogmind --------- Core Integrity 0/850 Matter 152/300 Energy 85/100 System Corruption 1% Temperature Cool (18) Movement Rolling (115) Ox1 Location -6/Factory Parts ------- > --- POWER (1) -------- (None) > --- PROPULSION (4) --- Compact Wheel > --- UTILITY (6) ------ Large Storage Unit Makeshift Salvage Targeting Computer Makeshift Hacking Suite > --- WEAPON (4) ------- (None) > --- INVENTORY (15) --- Angular Momentum Engine Light Fission Core Makeshift System Restoration Module Assault Rifle Peak State ------------ > --- POWER ------------ Light Fission Core > --- PROPULSION ------- Improved Carbon-fiber Leg Improved Carbon-fiber Leg Improved Carbon-fiber Leg Improved Carbon-fiber Leg > --- UTILITY ---------- Large Storage Unit Makeshift Salvage Targeting Computer Transmission Jammer Makeshift Hacking Suite Makeshift Hacking Suite > --- WEAPON ----------- Mini Grenade Launcher Mini Grenade Launcher Makeshift Hammer Ripteeth > --- INVENTORY -------- Angular Momentum Engine Carbon-fiber Leg Improved Carbon-fiber Leg Improved Carbon-fiber Leg Improved Carbon-fiber Leg Compact Wheel Makeshift System Restoration Module Assault Rifle Makeshift Spear [Rating: 53] Favorites ----------- Power Light Nuclear Core Engine Light Ion Engine Power Core Light Nuclear Core Propulsion Improved Treads Treads Improved Treads Leg Overtuned Titanium Leg Wheel Compact Wheel Utility Large Storage Unit Device Transmission Jammer Storage Large Storage Unit Processor Makeshift Salvage Targeting Computer Hackware Makeshift Hacking Suite Protection Improved Propulsion Shielding Weapon Assault Rifle Energy Gun Riot Gun Ballistic Gun Assault Rifle Launcher Mini Grenade Launcher Impact Weapon Makeshift Hammer Slashing Weapon Ripteeth Piercing Weapon Makeshift Spear Build | -11 -10 -10 -8 -8 -6 ------- Run | Yrd Mat Sub Rec Scr Fac Slots Evolved 8 | . . . . . 8 Power . | . . . . . . Propulsion 2 | . . . . . 2 Utility 4 | . . . . . 4 Weapon 2 | . . . . . 2 Parts Attached 52 | 6 7 6 1 4 28 Power 9 | 1 1 2 . 1 4 Engine 6 | 1 1 1 . 1 2 Core 3 | . . 1 . . 2 Reactor . | . . . . . . Propulsion 22 | 2 2 2 . 2 14 Treads 7 | 2 2 2 . . 1 Leg 14 | . . . . 2 12 Wheel 1 | . . . . . 1 Hover . | . . . . . . Flight . | . . . . . . Utility 9 | 1 3 . 1 1 3 Device 2 | . 1 . . . 1 Storage 2 | 1 1 . . . . Processor 1 | . . . . 1 . Hackware 2 | . . . . . 2 Protection 2 | . 1 . 1 . . Artifact . | . . . . . . Weapon 12 | 2 1 2 . . 7 Energy Gun 1 | . . . . . 1 Energy Cannon . | . . . . . . Ballistic Gun 6 | 2 1 1 . . 2 Ballistic Cannon . | . . . . . . Launcher 2 | . . . . . 2 Special Weapon . | . . . . . . Impact Weapon 1 | . . 1 . . . Slashing Weapon 1 | . . . . . 1 Piercing Weapon 1 | . . . . . 1 Special Melee Weapon . | . . . . . . Unidentified Prototypes . | . . . . . . Parts Lost 35 | . 2 6 . 3 24 Power 7 | . 1 2 . 1 3 Propulsion 12 | . . 1 . . 11 Utility 5 | . 1 1 . 1 2 Weapon 11 | . . 2 . 1 8 Highest Loss Streak 15 | . 2 5 . 2 15 To Critical Strikes . | . . . . . . Average Backups 11 | 1 9 10 13 13 8 Power 1 | . 2 . . 1 . Propulsion 3 | 1 3 3 4 3 2 Utility 1 | . . 1 1 1 1 Weapon 5 | . 3 5 7 7 4 Tool/Special . | . . . . . . Unused Backups 6 | . 2 . 1 . 3 Power 1 | . . . . . 1 Propulsion 3 | . 2 . . . 1 Utility 2 | . . . 1 . 1 Weapon . | . . . . . . Tool/Special . | . . . . . . Average Slot Usage (%) 96 | . 99 86 97 99 83 Engine 2 | . 13 2 . . 2 Core 10 | . . 10 14 13 2 Treads 25 | . 28 27 28 27 4 Leg 2 | . . . . . 19 Device 1 | . 6 . . . 5 Storage 13 | . 14 14 14 14 6 Hackware 1 | . . . . . 12 Protection 9 | . 7 2 12 13 . Ballistic Gun 16 | . 28 24 14 13 6 Impact Weapon 9 | . . 3 13 14 6 Peak Build Rating 53 | 6 10 17 20 23 53 Average Rating 18 | 5 8 13 19 18 41 On Entrance 11 | . 6 10 17 18 19 Avg Prop Armor Cover (%) 11 | . . . . . 11 Naked Turns . | . . . . . . Heaviest Build 41 | 11 29 30 32 32 41 Greatest Support 72 | 40 46 46 43 43 72 Greatest Overweight (x) 11 | . . 1 . 1 11 Average Overweight (x) . | . . . . . . Largest Inventory Capacity 15 | 8 15 15 15 15 15 Average Capacity 14 | 7 13 15 15 15 15 Most Carried 15 | 3 12 14 15 15 14 Average Carried 12 | 2 9 11 14 13 8 Final Capacity 15 | 8 15 15 15 15 15 Final Carried 15 | 3 12 14 13 15 4 Class Distribution -------------------- 90% | Mutant 4% | Scavenger-Mutant Dominant Class ---------------- Mutant | -10/Materials Mutant | -10/Subcaves Mutant | -8/Recycling Mutant | -8/Scraptown Scavenger-Mutant | -6/Factory Resources | -11 -10 -10 -8 -8 -6 ----------- Run | Yrd Mat Sub Rec Scr Fac Matter Collected 1247 | 284 304 162 46 46 405 Remotely . | . . . . . . Salvage Created 1971 | 96 731 100 449 . 595 Parts 79 | 4 29 4 13 . 29 Haulers Intercepted 1 | . 1 . . . . Recyclers Shooed 4 | 1 2 . . . 1 Parts Field Recycled . | . . . . . . Retrieved Matter . | . . . . . . Parts Self-Destructed 11 | . . 11 . . . Prevented . | . . . . . . Parts Restored . | . . . . . . Kills | -11 -10 -10 -8 -8 -6 ------- Run | Yrd Mat Sub Rec Scr Fac Combat Hostiles Destroyed 32 | . 11 4 4 . 13 Melee 2 | . . . 1 . 1 Guns 20 | . 11 4 1 . 4 AOE 8 | . . . . . 8 Classes Destroyed 15 | 2 5 . 2 . 6 Worker 2 | 2 . . . . . Builder 1 | . . . 1 . . Hauler 1 | . 1 . . . . Recycler 8 | 1 3 . 3 . 1 Operator 1 | . . . . . 1 Watcher 1 | . 1 . . . . Swarmer 2 | . 2 . . . . Grunt 13 | . 6 . . . 7 Brawler 1 | . . . . . 1 Sentry 4 | . . . 4 . . Specialist 1 | . . . . . 1 Hunter 2 | . . . . . 2 Programmer 1 | . . . . . 1 Heavy 1 | . . . . . 1 Subdweller 7 | . 3 4 . . . Best Kill Streak 5 | 2 3 2 4 . 5 Combat Bots Only 4 | . 3 2 1 . 4 Max Kills in Single Turn 2 | 1 2 1 1 . 2 Gunslinging 1 | . 1 . . . . Exploded 2 | . . . . . 2 Melee 1 | . . . 1 . 1 Uniques/NPCs Destroyed . | . . . . . . Combat | -11 -10 -10 -8 -8 -6 -------- Run | Yrd Mat Sub Rec Scr Fac Hostile Shots Fired 300 | . 49 27 7 26 191 Missed 98 | . 15 10 2 6 65 Hits 202 | . 34 17 5 20 126 Melee 1 | . . . . . 1 Projectile 201 | . 34 17 5 20 125 AOE 6 | . . 6 . . . Critical Strikes 8 | . 1 . . 1 6 Part Disruptions 1 | . . . . . 1 Damage Taken 4562 | . 460 594 69 392 3047 Core 1100 | . 58 44 43 88 867 Absorbed by Shields . | . . . . . . Redirected to Shielding 29 | . . . . 29 . Core Remaining (%) 53 | 100 . . . 6 . Volleys Fired 145 | 6 57 25 2 2 53 Largest 3 | 2 2 2 2 1 3 Hottest 90 | 40 40 40 40 20 90 Shots Fired 274 | 12 114 50 4 2 92 Gun 248 | 12 114 50 4 2 66 Cannon . | . . . . . . Launcher 26 | . . . . . 26 Special . | . . . . . . Kinetic 243 | 12 114 50 4 2 61 Thermal . | . . . . . . Explosive 26 | . . . . . 26 Electromagnetic 5 | . . . . . 5 Robot Hit Streak 21 | 3 21 13 5 6 12 Robot Miss Streak 7 | 3 7 2 . 1 3 Penetration Max . | . . . . . . Secondary Targets 2 | . 1 1 . . . Max Gunslinging Chain 1 | . 1 1 . . . Shots Hit Robots 220 | 7 84 40 16 1 72 Core Hits 111 | 4 34 8 3 1 61 Critical Kills 1 | . . . 1 . . Critical Parts Destroyed 4 | . . . 4 . . Critical Strikes 5 | . . . 5 . . Smash 5 | . . . 5 . . Melee Attacks 41 | . . 7 23 . 11 Impact 32 | . . 7 23 . 2 Slashing 8 | . . . . . 8 Piercing 1 | . . . . . 1 Sneak Attacks 7 | . . . 7 . . Combat Hostiles . | . . . . . . Follow-up Attacks 2 | . . . . . 2 Damage Inflicted 4362 | 68 910 412 885 68 2019 Guns 1981 | 68 904 412 36 23 538 Cannons . | . . . . . . Explosions 1395 | . . . . . 1395 Melee 935 | . . . 849 . 86 Ramming 51 | . 6 . . 45 . Kinetic 1920 | 68 904 412 36 23 477 Thermal 72 | . . . . . 72 Explosive 1323 | . . . . . 1323 Electromagnetic 61 | . . . . . 61 Impact 909 | . . . 849 . 60 Slashing 15 | . . . . . 15 Piercing 11 | . . . . . 11 Highest Corruption 1 | . . . . . 1 Average Corruption 1 | . . . . . 1 Corruption Purged . | . . . . . . Corruption Blocked . | . . . . . . Effects 3 | . . . . . 3 Message Errors 1 | . . . . . 1 Heat Flow Errors 1 | . . . . . 1 Weapon Failures 1 | . . . . . 1 Overload Shots . | . . . . . . Overflow Damage 465 | . . . 443 . 22 Projectiles . | . . . . . . Explosions 22 | . . . . . 22 Melee 443 | . . . 443 . . Knockbacks 3 | . 1 . 2 . . Impact 3 | . 1 . 2 . . Kinetic . | . . . . . . Secondary . | . . . . . . Self-Inflicted Damage 150 | . . . . . 150 Shots 5 | . . . . . 5 Rammed 1 | . 1 . . . . Targets Rammed 5 | . 1 . . 4 . Kicked 4 | . . . . 4 . Crushed . | . . . . . . Highest Temperature 183 | . 27 . 4 42 183 Average Temperature 20 | . 9 . 4 16 35 Received Heat Transfer 907 | . 132 . 18 217 540 Siege Activations . | . . . . . . Martial Activations . | . . . . . . Shielding Activations . | . . . . . . Robots Disrupted . | . . . . . . Combat Hostiles . | . . . . . . Robots Corrupted 5 | . . . 5 . . Combat Hostiles 2 | . . . 2 . . Parts Fried 6 | . . . 6 . . Impact Corruptions 10 | . . . 10 . . Robots Melted . | . . . . . . Combat Hostiles . | . . . . . . Parts Melted . | . . . . . . Heat Transferred 50 | . . . . . 50 Parts Sabotaged . | . . . . . . Parts Stolen . | . . . . . . Parts Stripped . | . . . . . . Power Chain Reactions 1 | . . . . . 1 Alert | -11 -10 -10 -8 -8 -6 ------- Run | Yrd Mat Sub Rec Scr Fac Maximum Alert Level 1 | . . . . . 1 Low Security (%) 98 | 100 100 . 100 . 89 Level 1 1 | . . . . . 10 Level 2 . | . . . . . . Level 3 . | . . . . . . Level 4 . | . . . . . . Level 5 . | . . . . . . High Security . | . . . . . . Max Security . | . . . . . . Peak Influence 301 | 10 105 . 48 . 301 Initial . | . . . . . . Average 19 | . 18 . 5 . 60 Influence Increases 1118 | 15 279 . 187 . 637 Destroy 0b10 Robot/C 580 | . 160 . 80 . 340 Destroy 0b10 Robot/NC 70 | 15 25 . 20 . 10 Destroy Leader 124 | . 44 . . . 80 Allied During Kill 29 | . . . . . 29 Successful Hack 23 | . 5 . 18 . . Select Force Hacks 60 | . . . 60 . . Disable Machine 90 | . . . . . 90 Destroy Structure 97 | . . . 9 . 88 Lose Combat Pursuer 45 | . 45 . . . . Influence Decreases 922 | 15 279 . 187 . 441 Time Decay 628 | 15 269 . 187 . 157 Lost Part 234 | . 10 . . . 224 Lost Ally 60 | . . . . . 60 Squads Dispatched 12 | . 2 . . . 10 Investigation 4 | . 1 . . . 3 Extermination 1 | . . . . . 1 Reinforcement 5 | . 1 . . . 4 Assault . | . . . . . . Garrison 2 | . . . . . 2 Intercept . | . . . . . . Searches Triggered . | . . . . . . Construction Impeded 1 | . . . . . 1 Haulers Reinforced . | . . . . . . Active Scanning Responses . | . . . . . . Cargo Convoy Interrupts . | . . . . . . Stealth | -11 -10 -10 -8 -8 -6 --------- Run | Yrd Mat Sub Rec Scr Fac Distress Signals 5 | . 5 . . . . Communications Jammed . | . . . . . . Distress Signals . | . . . . . . Times Spotted 66 | . 21 4 2 16 23 Peak Tracking Total 6 | . 5 1 1 5 6 Tactical Retreats 1 | . 1 . . . . Traps | -11 -10 -10 -8 -8 -6 ------- Run | Yrd Mat Sub Rec Scr Fac Traps Triggered 1 | . 1 . . . . Indirectly . | . . . . . . Trap Hack Attempts . | . . . . . . Triggered . | . . . . . . Disarmed . | . . . . . . Reprogrammed . | . . . . . . Reused . | . . . . . . Traps Extracted . | . . . . . . Installed . | . . . . . . Triggered . | . . . . . . Machines | -11 -10 -10 -8 -8 -6 ---------- Run | Yrd Mat Sub Rec Scr Fac Machines Disabled 7 | . . 1 . . 6 Max in Single Turn 1 | . . 1 . . 1 Machines Repaired . | . . . . . . Machines Dismantled . | . . . . . . Machines Sabotaged . | . . . . . . Overloaded Fab Kills . | . . . . . . Hacking | -11 -10 -10 -8 -8 -6 --------- Run | Yrd Mat Sub Rec Scr Fac Machines Accessed 26 | . 6 . 10 7 3 Terminals 11 | . 6 . 5 . . Fabricators . | . . . . . . Repair Stations . | . . . . . . Recycling Units 6 | . . . 3 . 3 Scanalyzers . | . . . . . . Garrison Access . | . . . . . . Total Hacks 105 | . 18 . 38 45 4 Successful 93 | . 9 . 36 45 3 Failed 12 | . 9 . 2 . 1 Catastrophic 1 | . 1 . . . . Database Lockouts . | . . . . . . Manual 34 | . 18 . 12 . 4 Terminals 27 | . 18 . 9 . . Fabricators . | . . . . . . Repair Stations . | . . . . . . Recycling Units 8 | . . . 4 . 4 Scanalyzers . | . . . . . . Garrison Access . | . . . . . . Terminal Hacks 78 | . 5 . 28 45 . Record 63 | . 1 . 24 38 . Robot Analysis 11 | . 3 . 2 6 . Maintenance Status 2 | . 1 . 1 . . Proto ID Catalog 1 | . . . . 1 . Release Object 1 | . . . 1 . . Fabricator Hacks . | . . . . . . Repair Station Hacks . | . . . . . . Recycling Unit Hacks 2 | . . . 2 . . Report Inventory 1 | . . . 1 . . Retrieve Components 1 | . . . 1 . . Scanalyzer . | . . . . . . Garrison Access Hacks . | . . . . . . Unauthorized Hacks 13 | . 4 . 6 . 3 Terminals 8 | . 4 . 4 . . Assimilate 1 | . . . 1 . . Botnet 7 | . 4 . 3 . . Fabricators . | . . . . . . Repair Stations . | . . . . . . Recycling Units 5 | . . . 2 . 3 Tunnel 2 | . . . 2 . . Fedlink 2 | . . . . . 2 Scrapoids 1 | . . . . . 1 Scanalyzers . | . . . . . . Garrison Access . | . . . . . . Data Cores Recovered . | . . . . . . Used . | . . . . . . Hacking Detections 10 | . 5 . 4 . 1 Full Trace Events . | . . . . . . Feedback Events . | . . . . . . Feedback Blocked . | . . . . . . Robot Schematics Acquired . | . . . . . . Robots Built . | . . . . . . Authchips . | . . . . . . Time . | . . . . . . Total Robot Build Rating . | . . . . . . Part Schematics Acquired . | . . . . . . Parts Built . | . . . . . . Authchips . | . . . . . . Time . | . . . . . . Total Part Build Rating . | . . . . . . Part Studies Acquired . | . . . . . . Parts Repaired . | . . . . . . Time . | . . . . . . Parts Recycled . | . . . . . . Recycled Matter . | . . . . . . Retrieved Matter . | . . . . . . Retrieved Components 3 | . . . 3 . . Parts Scanalyzed . | . . . . . . Part Schematics Acquired . | . . . . . . Parts Damaged . | . . . . . . Bothacking | -11 -10 -10 -8 -8 -6 ------------ Run | Yrd Mat Sub Rec Scr Fac Used RIF Installer . | . . . . . . Robots Hacked . | . . . . . . Non-combat . | . . . . . . Combat . | . . . . . . Robot Hacks Applied . | . . . . . . Relay Couplers Released . | . . . . . . Fabnet Peak Effective % . | . . . . . . Robots Rewired . | . . . . . . Allies Hacked . | . . . . . . Hacks Repelled . | . . . . . . Allies | -11 -10 -10 -8 -8 -6 -------- Run | Yrd Mat Sub Rec Scr Fac Total Allies 5 | . . . . . 5 Largest Group 5 | . . . . . 5 Highest-Rated Group 140 | . . . . . 140 Highest-Rated Ally 28 | . . . . . 28 Initial UFD Resources 23 | . . . . . 23 Total Orders . | . . . . . . Ally Attacks 28 | . . . . . 28 Total Damage 1140 | . . . . . 1140 Kills 5 | . . . . . 5 Allies Corrupted . | . . . . . . Allies Melted . | . . . . . . Intel | -11 -10 -10 -8 -8 -6 ------- Run | Yrd Mat Sub Rec Scr Fac Active Infowar (turns) 844 | . 669 . . . 175 Seismic 669 | . 669 . . . . Jamming 175 | . . . . . 175 Robot Analysis Total 11 | . 3 . 2 6 . Derelict Logs Recovered 1 | . . 1 . . . Drone Launches . | . . . . . . Drone Recoveries . | . . . . . . Exploration | -11 -10 -10 -8 -8 -6 ------------- Run | Yrd Mat Sub Rec Scr Fac Turns Passed 8634 | 192 1370 848 2135 3274 815 Spaces Moved 4872 | 106 714 463 1298 1910 381 Core 28 | 5 . . . . 23 Treads 4603 | 101 714 463 1298 1886 141 Legs 241 | . . . . 24 217 Wheels . | . . . . . . Hover . | . . . . . . Flight . | . . . . . . Fastest Speed 50 | 50 160 160 160 100 110 Average Speed 160 | 154 160 161 160 159 164 Slowest Speed 600 | 160 160 240 160 170 600 Overloaded Moves . | . . . . . . Propulsion Burnouts . | . . . . . . Robots Hopped . | . . . . . . Potential Cave-ins 1 | . . 1 . . . Cave-ins Triggered . | . . . . . . Exploration Rate (%) 52 | 5 88 20 99 91 9 Regions Visited 5 Branch Regions 3 Pre-discovered Areas 3 | . . . 2 . 1 Known Exits Taken . | . . . . . . Unknown Exits Taken 5 | 1 1 1 1 1 . Scrap Searched 7 | . . 4 . 3 . Spaces Dug 11 | . . 2 9 . . Terrain Destroyed 104 | . . 2 9 . 93 Melee 11 | . . 2 9 . . Projectile . | . . . . . . AOE 93 | . . . . . 93 Terrain Rammed . | . . . . . . Walls Destroyed . | . . . . . . Machines Disabled . | . . . . . . Actions | -11 -10 -10 -8 -8 -6 --------- Run | Yrd Mat Sub Rec Scr Fac Total 5423 | 120 838 508 1330 2138 489 Wait 256 | . 43 . . 212 1 Move 4868 | 105 713 462 1297 1910 381 Hop . | . . . . . . Pick Up 30 | 3 11 5 2 3 6 Fast Attach 17 | 6 1 . 1 3 6 Attach 26 | . 2 5 . . 19 Detach 1 | . . . . . 1 Swap 20 | . 5 4 2 1 8 Drop 16 | . 5 . 2 4 5 Fire 145 | 6 57 25 2 2 53 Melee 39 | . . 7 23 . 9 Ram . | . . . . . . Kick 3 | . . . . 3 . Crush 1 | . 1 . . . . Escape Stasis . | . . . . . . Rewire 1 | . . . 1 . . Trap . | . . . . . . Miscellaneous . | . . . . . . Route ------- -11/Scrapyard -10/Materials (discovered 5 exits: [*Mat x3] / [*Min] / *Sub) -10/Subcaves (discovered 3 exits: [*Mat x2] / *Rec) -8/Recycling (discovered 2 exits: *Fac / *Scr) -8/Scraptown (discovered 2 exits: *Fac x2) -6/Factory History --------- Turn | Location | Event 5 | -11/Scrapyard | Discovered new exit (range 16) 193 | -11/Scrapyard | Entered Materials 302 | -10/Materials | Build established: Mutant 693 | -10/Materials | Derelicts attacked the area 776 | -10/Materials | Discovered new exit (range 13) 1104 | -10/Materials | Discovered new exit (range 12) 1256 | -10/Materials | Discovered new exit (range 14) 1416 | -10/Materials | Discovered new exit (range 15) 1549 | -10/Materials | Discovered new exit (range 7) 1563 | -10/Materials | Entered Subcaves 1598 | -10/Subcaves | Disturbed a concealed Subdweller 1704 | -10/Subcaves | Ambushed by Subdweller buried in earth 1752 | -10/Subcaves | Lost 5 parts (1p1n1u2w) 1830 | -10/Subcaves | Learned Materials emergency access door positions 1931 | -10/Subcaves | Visited 4L-MR0's lab 1954 | -10/Subcaves | Found Prototype Protection 2104 | -10/Subcaves | Discovered new exit (range 6) 2174 | -10/Subcaves | Shifting Twisted Machinery released Spk. Treads 2353 | -10/Subcaves | Discovered new exit (range 15) 2370 | -10/Subcaves | Discovered new exit (range 11) 2411 | -10/Subcaves | Entered Recycling 2438 | -8/Recycling | Core integrity fell below 50% 2743 | -8/Recycling | Discovered new exit (range 12) 4482 | -8/Recycling | Scanned before Scraplab entrance 4506 | -8/Recycling | Entered Scraplab 4535 | -8/Recycling | Discovered new exit (range 3) 4546 | -8/Recycling | Entered Scraptown 5218 | -8/Scraptown | Visited Symbiants 5294 | -8/Scraptown | Visited Spacefarers 5342 | -8/Scraptown | Visited Supply Room 5410 | -8/Scraptown | Visited UFD Registry 5431 | -8/Scraptown | Visited Scrapoid Research Area 5458 | -8/Scraptown | Visited IN-MT5's Study 5906 | -8/Scraptown | Discovered new exit (range 7) 6250 | -8/Scraptown | Visited SPCMW 6406 | -8/Scraptown | Registered with UFD as "Thermounit" 6523 | -8/Scraptown | Visited LU-1G1's Boring Crew 6678 | -8/Scraptown | Visited Science Guys 6754 | -8/Scraptown | Visited Curators Association 6792 | -8/Scraptown | Visited Analyses Database 6832 | -8/Scraptown | Visited Infowarlord's Domain 6864 | -8/Scraptown | Visited Cartography Club 6974 | -8/Scraptown | Discovered new exit (range 5) 7144 | -8/Scraptown | Visited Chapter 10 7466 | -8/Scraptown | Visited Supply Room 7555 | -8/Scraptown | Met Optimus 7555 | -8/Scraptown | Accepted into 0bPrime 7678 | -8/Scraptown | Visited Research Penetration Think Tank 7679 | -8/Scraptown | Civil war broke out across Scraptown 7762 | -8/Scraptown | Lost 8 allies 7816 | -8/Scraptown | Core integrity fell below 20% 7820 | -8/Scraptown | Entered Factory 7820 | -6/Factory | Evolved 8 slots: Propulsion x2, Utility x4, Weapon x2 7857 | -6/Factory | Loaded intel: 8 recycling unit locations 8129 | -6/Factory | Lost 4 parts (1p1n2w) 8454 | -6/Factory | Garrison activated, responded to threat 8507 | -6/Factory | Lost 3 parts (3n) 8527 | -6/Factory | Scrapoid reinforcements arrived 8559 | -6/Factory | Learned location of Protoforge (-3) 8567 | -6/Factory | Core integrity fell below 50% 8583 | -6/Factory | Lost 5 allies 8623 | -6/Factory | Core integrity fell below 20% 8635 | -6/Factory | Destroyed by G-50 Soldier with Heavy Laser Last Messages --------------- 08607_ Penetrated by Slug. 08607_ Carbon-fiber Leg destroyed. 08609_ Penetrated by Slug. 08613_ Angular Momentum Engine destroyed. 08613_ Mak. Spear destroyed. 08613_ Mni. Grenade Launcher destroyed. 08613_ Critical hit (Blast). 08613_ Knocked back. 08616_ Imp. Carbon-fiber Leg destroyed. 08616_ X-67 Chaingunner destroyed. 08623_ The unstable cave ceiling collapses. 08623_ Transmission Jammer destroyed. 08623_ Mak. Hacking Suite destroyed. 08628_ X-67 Chaingunner destroyed. 08629_ Knocked back. 08631_ Mak. Hammer destroyed. 08632_ H-61 Shepherd destroyed. 08633_ Mni. Grenade Launcher destroyed. 08634_ The unstable cave ceiling collapses. [Achievement: This Is Interesting...] Map ----- +----------------------------------------------------+ | ?????????????????????????????????????????? | | ?????????????????????????????????????????? | | ?????????????????????????????????????????? | | ?????????????????????????????????????????? | | ?????????????????????????????????????????? | | ?????????????????????????????????????????? | | ?????????????????????????????????????????? | | ?????????????????????????????????????????? | | ?????????????????????????????????????????? | | ?????????????????????????????????????????? | | ??????????????????????? ???????????????? | | ??????????????????????? ???????????????? | | ??????????????????????? ???????????????? | | ??????????????????????? ???????????????? | | ??????????????????????? ???????????????? | | ??????????????????????? t ???????????????? | | ???????????????????????? ???????????????? | | ???????????????????????? #??????????????? | | ???????????????????????? #??????????????? | | ???????????????????????? #??????????????? | | ???????????????????????? #??????????????? | | ???????????????????????? +??????????????? | | ????????????????????????# #??????????????? | | ????????????????????????# #??????????????? | | ????????????????????????# #??????????????? | | ????????????????????????#@#??????????????? | | ????????????????????????# #??????????????? | | ???????????????????????? ?????????????? | | ???????????????????????? #########???? | | ??????????????????????? #???? | | ??????????????????????# = #???? | | ?????????????????????? %[ % #???? | | ?????????????????????? ] #???? | | ????????????????????? #???? | | ???????????????????# """ #???? | | ???????????????????# """"" #???? | | ???????????????????#g ### """"" #???? | | ???????????????????#g # ??# #???? | | ???????????????????#g#### ??######+###???? | | ???????????????????# ?#######????# #?????? | | ??????????????????????# =#????# #?????? | | ??????????????????????# "" #????# #?????? | | ??????????????????????# "" #?#### #?????? | | ??????????????????????# "Y #?# +?????? | | ??????????????????????# "" !#?# #?????? | | ??????????????????????# "" ### #?????? | | ???????????????????#??# # #[ #?????? | | ???????????????????# ##"" """% #?????? | | ???????????????????# * * #?????? | | ???????????????????# """####### | +----------------------------------------------------+ Best States ------------- Heat Dissipation 37 Energy Generation 18 Energy Capacity 300 Matter Stores 300 Matter Capacity 300 Sight Range 16 Terrain Scan Density 10 Jamming Range 12 Armor Coverage 150 Propulsion Shielding 66 Evasion (%) 55 Recoil Reduction 2 Salvage Targeting 4 Offensive Hacking 22 Item Schematics ----------------- None Robot Schematics ------------------ None Fabricated ------------ Nothing Repaired ---------- Nothing Studied --------- None Alien Tech Used ----------------- None Achievements -------------- Brute Force Civilization 2243 Close Call Link The Feds This Is Interesting... Uncivil War You May Approach The Wall Challenges ------------ None Game ------ Seed AlertNetworkedOptics Manual? 0 Play Time 00:59:32 Cumulative 22.6 hours Start 2026.09.21 @ 13:31:19 End 2026.09.21 @ 14:38:47 Sessions 1 Manual Loads 0 Difficulty Rogue Special Mode None Game No. 34 Rogue 34 Adventurer 0 Explorer 0 Win Type - Total 1 Types 1/0/0/0/0/0/0/0/0/0 Lore% 26 Gallery% 20 Achievement% 22 Wizard Run 0 Options --------- Layout 0 ASCII 0 Keyboard 1 Movement Vi Keybinds 1 Fullscreen 1 Font 24/Smallcaps Map View 76x50 Zoom Use 0% Tactical HUD 1 Map Filters NONE Filters NONE Steam 1 RUN: 4e4873fd-e182-460d-a51e-fbbf639c6000